bitfinex/quotes_ETHUSD_20230102
["timestamp","ask_amount","ask_price","bid_price","bid_amount"]
[1672628580978,1e-08,1198.4,1198.3,13.61286233]
[1672628581331,2.49891717,1198.4,1198.3,21.95801233]
[1672628582147,2.49891717,1198.4,1198.3,13.61286233]
[1672628586240,2.49891717,1198.4,1198.3,13.61026903]
[1672628589459,5.62446916,1198.4,1198.3,13.61026903]
[1672628589768,5.62810566,1198.4,1198.3,13.61026903]
[1672628591735,2.50255367,1198.4,1198.3,13.61026903]
[1672628591963,2.49891717,1198.4,1198.3,13.61026903]
[1672628592134,5.62446916,1198.4,1198.3,13.61026903]
[1672628592345,5.62810566,1198.4,1198.3,13.61026903]
[1672628593655,5.62810566,1198.4,1198.3,12.52312713]
[1672628593878,2.50255367,1198.4,1198.3,12.52312713]
[1672628594032,2.49891717,1198.4,1198.3,12.52312713]
[1672628594599,2.49891717,1198.4,1198.3,10.42512713]
[1672628594942,2.49891717,1198.4,1198.3,11.4447068]
[1672628596252,5.62446916,1198.4,1198.3,11.4447068]
[1672628596442,5.62810566,1198.4,1198.3,11.4447068]
[1672628604230,5.62810566,1198.4,1198.3,12.18068077]
[1672628605580,6.88600633,1198.4,1198.3,6.1640853]
[1672628605791,3.76045434,1198.4,1198.3,6.1640853]
[1672628606029,3.75681784,1198.4,1198.3,6.1640853]
[1672628607109,3.75681784,1198.4,1198.3,6.16189621]
[1672628607319,3.75681784,1198.4,1198.3,9.16189621]
[1672628614354,1e-08,1198.4,1198.3,9.16189621]
[1672628614722,3.75681784,1198.4,1198.3,9.16189621]
[1672628615635,1e-08,1198.4,1198.3,9.16189621]
[1672628616200,3.75681784,1198.4,1198.3,9.16189621]
[1672628616442,4.77879504,1198.4,1198.3,8.93189621]
[1672628618058,9.77879504,1198.4,1198.3,8.93189621]
[1672628618208,9.78243154,1198.4,1198.3,8.93189621]
[1672628619417,8.76045434,1198.4,1198.3,8.93189621]
[1672628619826,3.76045434,1198.4,1198.3,8.93189621]
[1672628620034,3.75681784,1198.4,1198.3,8.93189621]
[1672628630606,3.75681784,1198.4,1198.3,8.92816061]
[1672628653743,3.75681784,1198.4,1198.3,8.92465117]
[1672628658221,1e-08,1198.4,1198.3,8.92465117]
[1672628658692,3.13067257,1198.4,1198.3,8.92465117]
[1672628659222,3.13069234,1198.4,1198.3,8.92465117]
[1672628660555,2.50406746,1198.4,1198.3,40.90958381]
[1672628660766,4.38206059,1198.4,1198.3,32.56443381]
[1672628661585,2.50406746,1198.4,1198.3,32.56443381]
[1672628661834,4.38140083,1198.4,1198.3,32.56443381]
[1672628662462,4.38139529,1198.4,1198.3,32.56443381]
[1672628663056,2.50406746,1198.4,1198.3,32.56443381]
[1672628663263,4.38141155,1198.4,1198.3,32.56443381]
[1672628663484,2.50406746,1198.4,1198.3,24.21928381]
[1672628663746,4.38140173,1198.4,1198.3,24.21928381]
[1672628664128,1.87733428,1198.4,1198.3,24.21928381]
[1672628664457,4.38140173,1198.4,1198.3,24.21928381]
[1672628666798,4.38140173,1198.4,1198.3,24.21520718]
[1672628667428,4.38140173,1198.4,1198.3,20.89261425]
[1672628668793,4.38140173,1198.4,1198.3,20.62284303]
[1672628669490,4.38140173,1198.4,1198.3,23.96641166]
[1672628669681,4.38140173,1198.4,1198.3,20.62284303]
[1672628674304,4.38140173,1198.4,1198.3,23.96632455]
[1672628674513,4.38140173,1198.4,1198.3,20.62284303]
[1672628674974,4.38140173,1198.4,1198.3,23.96641266]
[1672628675185,4.38140173,1198.4,1198.3,20.62284303]
[1672628675514,4.38140173,1198.4,1198.3,23.96675638]
[1672628675939,4.38140173,1198.4,1198.3,23.96675615]
[1672628676300,4.38140173,1198.4,1198.3,20.62284303]
[1672628678406,4.38140173,1198.4,1198.3,20.62063209]
[1672628678878,1.87733428,1198.4,1198.3,23.9644631]
[1672628679203,4.38140173,1198.4,1198.3,23.9644631]
[1672628679351,1.87733428,1198.4,1198.3,20.62063209]
[1672628679719,4.38140173,1198.4,1198.3,20.62063209]
[1672628683471,2.50406746,1198.4,1198.3,20.62063209]
[1672628684288,2.50406746,1198.4,1198.3,23.96378453]
[1672628684499,4.38140447,1198.4,1198.3,23.96378453]
[1672628684710,4.38140447,1198.4,1198.3,20.62063209]
[1672628685183,4.38140447,1198.4,1198.3,23.9648964]
[1672628685396,2.50406746,1198.4,1198.3,23.9648964]
[1672628686585,2.50406746,1198.4,1198.3,23.9653737]
[1672628686797,4.38155683,1198.4,1198.3,23.9653737]
[1672628688422,4.38155683,1198.4,1198.3,23.96527404]
[1672628689288,4.38155683,1198.4,1198.3,20.62063209]
[1672628689524,2.50406746,1198.4,1198.3,20.62063209]
[1672628691423,5.63475979,1198.4,1198.3,20.62063209]
[1672628691594,5.63839629,1198.4,1198.3,20.62063209]
[1672628693469,2.50770396,1198.4,1198.3,23.96551049]
[1672628693737,2.50406746,1198.4,1198.3,23.96551049]
[1672628693928,5.63475979,1198.4,1198.3,20.62063209]
[1672628694167,5.63839629,1198.4,1198.3,20.62063209]
[1672628699795,4.38948579,1198.4,1198.3,45.66658354]
[1672628700051,2.5061996,1198.4,1198.3,45.66658354]
[1672628700229,5.63689193,1198.4,1198.3,42.32093209]
[1672628700411,2.5098361,1198.4,1198.3,42.32093209]
[1672628700785,5.63689193,1198.4,1198.3,42.32093209]
[1672628700952,5.64052843,1198.4,1198.3,42.32093209]
[1672628701618,2.5098361,1198.4,1198.3,42.32093209]
[1672628701830,5.63689193,1198.4,1198.3,42.31730309]
[1672628702048,5.64052843,1198.4,1198.3,33.97215309]
[1672628702614,5.64052843,1198.4,1198.3,10.99642383]
[1672628702615,3.76045434,1198.4,1198.3,10.99642383]
[1672628702859,1e-08,1198.4,1198.3,10.99642383]
[1672628703072,3.13304631,1198.4,1198.3,10.99642383]
[1672628703358,3.13271667,1198.4,1198.3,10.99642383]
[1672628704510,3.13271667,1198.4,1198.3,11.22642383]
[1672628709118,1e-08,1198.4,1198.3,11.22642383]
[1672628711393,3.13176323,1198.4,1198.3,11.22642383]
[1672628711949,1e-08,1198.4,1198.3,11.22642383]
[1672628712270,3.75681784,1198.4,1198.3,11.22642383]
[1672628714553,3.75681784,1198.4,1198.3,9.13142383]
[1672628715819,3.13030693,1198.4,1198.3,9.13142383]
[1672628716157,1e-08,1198.4,1198.3,9.13142383]
[1672628716467,3.13030152,1198.4,1198.3,9.13142383]
[1672628719998,5.6344366,1198.4,1198.3,9.13142383]
[1672628720238,5.6380731,1198.4,1198.3,12.76017065]
[1672628724555,3.13393802,1198.4,1198.3,14.85554647]
[1672628724879,3.13393802,1198.4,1198.3,11.22679965]
[1672628724880,3.13030152,1198.4,1198.3,11.22679965]
[1672628733018,3.13030152,1198.4,1198.3,11.56745502]
[1672628741369,1e-08,1198.4,1198.3,11.56745502]
[1672628742920,3.1318334,1198.4,1198.3,11.56745502]
[1672628743102,1e-08,1198.4,1198.3,11.56745502]
[1672628744353,3.75681784,1198.4,1198.3,11.56745502]
[1672628744512,1e-08,1198.4,1198.3,11.56745502]
[1672628748241,3.13189472,1198.4,1198.3,11.56745502]
[1672628748608,3.13189472,1198.4,1198.3,11.3150712]
[1672628748853,3.13189472,1198.4,1198.3,11.56486519]
[1672628750243,3.13179963,1198.4,1198.3,19.91001519]
[1672628750479,3.13179963,1198.4,1198.3,24.61662115]
[1672628759483,3.13179963,1198.4,1198.3,16.27147115]
[1672628759687,3.13179963,1198.4,1198.3,11.56486519]
[1672628760261,3.75681784,1198.4,1198.3,11.56486519]
[1672628764943,3.13271836,1198.4,1198.3,11.56486519]
[1672628765264,1e-08,1198.4,1198.3,11.56486519]
[1672628765527,3.13271867,1198.4,1198.3,11.56486519]
[1672628766252,1e-08,1198.4,1198.3,11.56486519]
[1672628766463,3.13271912,1198.4,1198.3,11.56486519]
[1672628767298,3.13271876,1198.4,1198.3,11.56486519]
[1672628767645,1e-08,1198.4,1198.3,11.56486519]
[1672628767840,3.1326941,1198.4,1198.3,11.56486519]
[1672628768722,1e-08,1198.4,1198.3,11.56486519]
[1672628768872,3.13270186,1198.4,1198.3,11.56486519]
[1672628770609,3.13270186,1198.4,1198.3,11.56099954]
[1672628770766,3.13270186,1198.4,1198.3,15.43262893]
[1672628772603,3.13270186,1198.4,1198.3,23.77777893]
[1672628776122,1e-08,1198.4,1198.3,23.77777893]
[1672628776329,3.13256283,1198.4,1198.3,23.77777893]
[1672628776761,3.13256283,1198.4,1198.3,15.43262893]
[1672628777235,1e-08,1198.4,1198.3,15.43262893]
[1672628777450,3.13258419,1198.4,1198.3,15.43262893]
[1672628784018,3.13258419,1198.4,1198.3,11.56099954]
[1672628784860,1e-08,1198.4,1198.3,11.56099954]
[1672628785586,3.13272924,1198.4,1198.3,11.56099954]
[1672628785823,1e-08,1198.4,1198.3,11.56099954]
[1672628786402,3.75681784,1198.4,1198.3,11.56099954]
[1672628786786,1e-08,1198.4,1198.3,9.46299954]
[1672628787466,3.75681784,1198.4,1198.3,9.46299954]
[1672628787683,1e-08,1198.4,1198.3,9.46299954]
[1672628790338,3.75681784,1198.4,1198.3,9.46299954]
[1672628791394,1e-08,1198.4,1198.3,9.46299954]
[1672628794172,3.75681784,1198.4,1198.3,9.46299954]
[1672628795487,3.75681784,1198.4,1198.3,9.46089108]
[1672628803331,3.75181084,1198.4,1198.3,13.12250963]
[1672628816104,3.81744734,1198.5,1198.3,13.12250963]
[1672628816245,3.75181084,1198.5,1198.4,7.37886114]
[1672628816602,3.75181084,1198.5,1198.4,7.69724496]
[1672628816770,3.75181084,1198.5,1198.4,9.00118973]
[1672628827128,3.75181084,1198.5,1198.4,8.99865147]
[1672628850976,3.75181084,1198.5,1198.4,8.99576128]
[1672628860352,4.38295414,1198.5,1198.4,8.99576128]
[1672628860603,4.44859064,1198.6,1198.4,8.99576128]
[1672628860837,4.38295414,1198.5,1198.4,8.99576128]
[1672628862039,4.38074112,1198.5,1198.4,8.99576128]
[1672628862254,3.75927181,1198.5,1198.4,8.99576128]
[1672628862795,0.0656365,1198.6,1198.4,8.99576128]
[1672628862999,3.759253,1198.5,1198.4,8.99576128]
[1672628863201,0.0656365,1198.6,1198.4,8.99576128]
[1672628863406,3.75924198,1198.5,1198.4,8.99576128]
[1672628863655,0.0656365,1198.6,1198.4,8.99576128]
[1672628863866,3.75927202,1198.5,1198.4,8.99576128]
[1672628864082,0.0656365,1198.6,1198.4,8.99576128]
[1672628864252,3.75923986,1198.5,1198.4,8.99576128]
[1672628869979,3.76123986,1198.5,1198.4,8.99376128]
[1672628870197,3.75923986,1198.5,1198.4,8.99576128]
[1672628876242,3.75923986,1198.5,1198.4,10.77050469]
[1672628882925,3.75923986,1198.5,1198.4,8.99576128]
[1672628883062,3.75923986,1198.5,1198.4,8.74337746]
[1672628883483,3.75923986,1198.5,1198.4,8.99576128]
[1672628886004,3.75923986,1198.5,1198.4,8.99368994]
[1672628889189,3.76123986,1198.5,1198.4,8.99168994]
[1672628889378,3.75923986,1198.5,1198.4,8.99368994]
[1672628898057,4.45133343,1198.6,1198.4,8.99368994]
[1672628898271,4.38569693,1198.6,1198.4,8.99368994]
[1672628899482,4.33569693,1198.6,1198.5,3.0]
[1672628899700,9.33569693,1198.6,1198.5,3.0]
[1672628899924,9.33933343,1198.6,1198.5,3.0]
[1672628902860,4.33933343,1198.6,1198.5,3.0]
[1672628903071,4.33569693,1198.6,1198.5,3.0]
[1672628903812,9.33569693,1198.6,1198.5,3.0]
[1672628904002,9.33933343,1198.6,1198.5,3.0]
[1672628907400,9.3894681,1198.6,1198.5,3.0]
[1672628909720,4.3894681,1198.6,1198.5,3.0]
[1672628909937,4.3858316,1198.6,1198.5,3.0]
[1672628910814,9.3858316,1198.6,1198.5,3.0]
[1672628911028,9.3894681,1198.6,1198.5,3.0]
[1672628916834,4.3894681,1198.6,1198.5,3.0]
[1672628917046,4.3858316,1198.6,1198.5,3.0]
[1672628917919,9.3858316,1198.6,1198.5,3.0]
[1672628918110,9.3894681,1198.6,1198.5,3.0]
[1672628918319,5.0036365,1198.6,1198.5,3.0]
[1672628921255,9.38970653,1198.6,1198.5,3.0]
[1672628921932,9.38970653,1198.6,1198.5,4.27392544]
[1672628922303,5.0036365,1198.6,1198.5,4.27392544]
[1672628922511,9.3897053,1198.6,1198.5,4.27392544]
[1672628923572,9.3897053,1198.6,1198.5,4.27157009]
[1672628923793,4.3897053,1198.6,1198.5,4.27157009]
[1672628924103,4.3860688,1198.6,1198.5,4.27157009]
[1672628924868,9.3860688,1198.6,1198.5,4.27157009]
[1672628925087,9.3897053,1198.6,1198.5,4.27157009]
[1672628925258,5.0036365,1198.6,1198.5,4.27157009]
[1672628925471,9.38990296,1198.6,1198.5,4.27157009]
[1672628927462,5.0036365,1198.6,1198.5,4.27157009]
[1672628927977,9.39018812,1198.6,1198.5,4.27157009]
[1672628930707,4.39018812,1198.6,1198.5,4.27157009]
[1672628930917,4.38655162,1198.6,1198.5,4.27157009]
[1672628931970,9.38655162,1198.6,1198.5,4.27157009]
[1672628932129,9.39018812,1198.6,1198.5,4.27157009]
[1672628933194,5.0036365,1198.6,1198.5,4.27157009]
[1672628933346,9.39016706,1198.6,1198.5,4.27157009]
[1672628935783,5.0036365,1198.6,1198.5,4.27157009]
[1672628937812,0.0036365,1198.6,1198.5,7.27157009]
[1672628938030,13.27952002,1198.7,1198.5,4.33757009]
[1672628938031,13.22115652,1198.7,1198.5,4.33757009]
[1672628938177,4.38653466,1198.6,1198.5,4.27157009]
[1672628938386,15.50565908,1198.7,1198.5,4.27157009]
[1672628938654,15.44365908,1198.7,1198.5,4.27157009]
[1672628938863,9.38647654,1198.6,1198.5,4.27157009]
[1672628939073,9.39011304,1198.6,1198.5,4.27157009]
[1672628941855,9.39011304,1198.6,1198.5,4.52395391]
[1672628947806,9.38754969,1198.6,1198.5,4.52153168]
[1672628949135,10.17919317,1198.6,1198.5,4.52153168]
[1672628949487,12.6681504,1198.6,1198.5,4.52153168]
[1672628949678,12.6681504,1198.6,1198.5,4.26914786]
[1672628951260,7.49003038,1198.6,1198.5,4.26914786]
[1672628951670,12.6681504,1198.6,1198.5,4.26914786]
[1672628952437,7.49003038,1198.6,1198.5,4.26914786]
[1672628953152,12.6681504,1198.6,1198.5,4.26914786]
[1672628954054,7.49003038,1198.6,1198.5,4.26914786]
[1672628956388,5.00107315,1198.6,1198.5,4.26914786]
[1672628956786,0.0036365,1198.6,1198.5,4.26914786]
[1672628956997,15.31915652,1198.7,1198.5,4.26914786]
[1672628957666,5.17812002,1198.6,1198.5,4.26914786]
[1672628957858,5.0036365,1198.6,1198.5,4.26914786]
[1672628958088,10.18175652,1198.6,1198.5,4.26914786]
[1672628958444,5.0036365,1198.6,1198.5,4.26914786]
[1672628963985,0.0036365,1198.6,1198.5,7.26914786]
[1672628964193,15.31915652,1198.7,1198.5,4.33514786]
[1672628964413,17.98639543,1198.7,1198.5,4.26914786]
[1672628964784,8.0,1198.6,1198.5,4.26914786]
[1672628964995,5.0036365,1198.6,1198.5,4.26914786]
[1672628965261,10.18175652,1198.6,1198.5,4.26914786]
[1672628969618,10.18175652,1198.6,1198.5,4.26565869]
[1672628970950,0.0036365,1198.6,1198.5,7.26565869]
[1672628971121,15.88839543,1198.7,1198.5,4.33165869]
[1672628971339,15.88839543,1198.7,1198.5,4.26565869]
[1672628971897,5.0,1198.6,1198.5,4.26565869]
[1672628972110,5.0036365,1198.6,1198.5,4.26565869]
[1672628974998,10.18175652,1198.6,1198.5,4.26565869]
[1672628977728,5.18175652,1198.6,1198.5,4.26565869]
[1672628978806,10.18175652,1198.6,1198.5,4.26565869]
[1672628979199,5.0036365,1198.6,1198.5,4.26565869]
[1672628979764,9.38876899,1198.6,1198.5,4.26565869]
[1672628979937,9.38876899,1198.6,1198.5,4.51804251]
[1672628987811,4.38876899,1198.6,1198.5,4.51804251]
[1672628988074,5.0,1198.6,1198.5,4.51804251]
[1672628988286,5.0036365,1198.6,1198.5,4.51804251]
[1672628988867,9.38858933,1198.6,1198.5,4.51804251]
[1672628989281,9.388624,1198.6,1198.5,4.51804251]
[1672628989674,5.0036365,1198.6,1198.5,4.51804251]
[1672628992285,5.0036365,1198.6,1198.5,4.51520265]
[1672628993847,9.38859297,1198.6,1198.5,4.51520265]
[1672628994064,0.0036365,1198.6,1198.5,4.51520265]
[1672628994383,5.17812002,1198.6,1198.5,4.51520265]
[1672628994697,5.18175652,1198.6,1198.5,4.51520265]
[1672628995118,10.18175652,1198.6,1198.5,4.51520265]
[1672629000651,12.27679606,1198.6,1198.5,4.51520265]
[1672629001011,7.27679606,1198.6,1198.5,4.51520265]
[1672629002062,12.27679606,1198.6,1198.5,4.51520265]
[1672629008189,7.27679606,1198.6,1198.5,4.51520265]
[1672629008403,5.18175652,1198.6,1198.5,4.51520265]
[1672629009356,10.18175652,1198.6,1198.5,4.51520265]
[1672629011874,5.0036365,1198.6,1198.5,4.51520265]
[1672629012234,10.18175652,1198.6,1198.5,4.51520265]
[1672629012649,5.0036365,1198.6,1198.5,4.51520265]
[1672629012882,10.18175652,1198.6,1198.5,4.51520265]
[1672629013286,10.18175652,1198.6,1198.5,4.51219349]
[1672629015451,5.18175652,1198.6,1198.5,4.51219349]
[1672629016078,10.18175652,1198.6,1198.5,4.51219349]
[1672629022842,5.18175652,1198.6,1198.5,4.51219349]
[1672629023019,10.18175652,1198.6,1198.5,4.51219349]
[1672629029120,5.18175652,1198.6,1198.5,4.51219349]
[1672629030171,10.18175652,1198.6,1198.5,4.51219349]
[1672629035804,10.18175652,1198.6,1198.5,4.50907976]
[1672629036034,5.18175652,1198.6,1198.5,4.50907976]
[1672629037321,10.18175652,1198.6,1198.5,4.50907976]
[1672629043202,5.18175652,1198.6,1198.5,4.50907976]
[1672629044001,10.18175652,1198.6,1198.5,4.50907976]
[1672629046214,10.17962333,1198.6,1198.5,4.50907976]
[1672629046548,10.18162333,1198.6,1198.5,4.50907976]
[1672629050046,5.18162333,1198.6,1198.5,4.50907976]
[1672629051155,10.18162333,1198.6,1198.5,4.50907976]
[1672629057045,5.18162333,1198.6,1198.5,4.50907976]
[1672629058088,10.18162333,1198.6,1198.5,4.50907976]
[1672629063390,12.63164257,1198.6,1198.5,1.27392544]
[1672629063724,22.29265342,1198.6,1198.5,1.27392544]
[1672629063957,16.07548431,1198.6,1198.5,1.27392544]
[1672629064504,0.18931822,1198.4,1198.2,3.79645248]
[1672629064764,10.18258716,1198.3,1198.2,3.73045248]
[1672629064978,7.31637223,1198.3,1198.2,3.73045248]
[1672629065345,12.49036362,1198.3,1198.2,3.73045248]
[1672629066719,12.49036362,1198.3,1198.2,6.73045248]
[1672629067076,12.49036362,1198.3,1198.2,6.79645248]
[1672629067290,11.69318501,1198.3,1198.2,6.79645248]
[1672629068709,11.69318501,1198.3,1198.2,3.066]
[1672629068953,11.69318501,1198.3,1198.1,3.22934382]
[1672629069164,3.74954435,1198.2,1198.0,7.61487986]
[1672629069356,8.12462013,1198.1,1198.0,8.51135718]
[1672629069550,7.87573962,1198.1,1198.0,10.1856729]
[1672629069973,7.87573962,1198.1,1198.0,10.43805672]
[1672629071708,3.12812344,1198.1,1198.0,10.43805672]
[1672629071877,3.12462013,1198.1,1198.0,10.43805672]
[1672629074341,3.12462013,1198.1,1198.0,8.763741]
[1672629075379,3.12462013,1198.1,1198.0,4.61487986]
[1672629075719,3.12462013,1198.1,1198.0,4.54887986]
[1672629076276,8.12462013,1198.1,1198.0,4.54887986]
[1672629076541,5.00350331,1198.1,1198.0,4.54887986]
[1672629076922,8.12525963,1198.1,1198.0,4.54887986]
[1672629078627,8.12525963,1198.1,1198.0,0.77003048]
[1672629079029,8.12525963,1198.1,1198.0,4.18899592]
[1672629079216,10.62184428,1198.1,1198.0,4.18899592]
[1672629079451,10.62184428,1198.1,1198.0,3.77003048]
[1672629081952,10.62184428,1198.1,1198.0,0.77003048]
[1672629082214,8.12525963,1198.1,1198.0,0.77003048]
[1672629084352,8.12525963,1198.1,1198.0,1.17769959]
[1672629085114,8.12525963,1198.1,1198.0,8.85356816]
[1672629085340,3.12525963,1198.1,1198.0,8.91956816]
[1672629085674,3.12175632,1198.1,1198.0,8.91956816]
[1672629086329,8.12175632,1198.1,1198.0,8.91956816]
[1672629086647,8.12525963,1198.1,1198.0,8.91956816]
[1672629087656,8.12525963,1198.1,1198.0,1.24369959]
[1672629087894,8.12525963,1198.1,1198.0,1.17769959]
[1672629090194,8.12525963,1198.1,1198.0,4.17769959]
[1672629090785,8.12525963,1198.1,1198.0,1.17769959]
[1672629092400,3.12525963,1198.1,1198.0,1.17769959]
[1672629092607,3.12175632,1198.1,1198.0,1.17769959]
[1672629093220,8.12175632,1198.1,1198.0,1.17769959]
[1672629093479,8.12525963,1198.1,1198.0,1.17769959]
[1672629095543,8.75304766,1198.1,1198.0,1.17769959]
[1672629095745,5.00350331,1198.1,1198.0,1.17769959]
[1672629096377,8.12806797,1198.1,1198.0,1.17769959]
[1672629096588,5.00350331,1198.1,1198.0,1.17769959]
[1672629097694,8.75304766,1198.1,1198.0,1.17769959]
[1672629099402,3.75304766,1198.1,1198.0,1.17769959]
[1672629099579,3.74954435,1198.1,1198.0,1.17769959]
[1672629100339,8.74954435,1198.1,1198.0,1.17769959]
[1672629100543,8.75304766,1198.1,1198.0,1.17769959]
[1672629101500,5.00350331,1198.1,1198.0,1.17769959]
[1672629103149,9.38031609,1198.1,1198.0,1.17769959]
[1672629103360,9.38031609,1198.1,1198.0,1.17438273]
[1672629106219,4.38031609,1198.1,1198.0,1.17438273]
[1672629106449,4.37681278,1198.1,1198.0,1.17438273]
[1672629107269,9.37681278,1198.1,1198.0,1.17438273]
[1672629107478,9.38031609,1198.1,1198.0,1.17438273]
[1672629108878,9.38031609,1198.1,1198.0,0.92199891]
[1672629110349,9.37716316,1198.1,1198.0,0.92199891]
[1672629110928,5.00350331,1198.1,1198.0,3.92199891]
[1672629111138,5.00350331,1198.1,1198.0,5.23122664]
[1672629111405,5.00350331,1198.1,1198.0,13.88197709]
[1672629111771,5.00350331,1198.1,1198.0,5.29722664]
[1672629112838,8.76317576,1198.1,1198.0,9.44608778]
[1672629113867,8.74649276,1198.1,1198.0,9.44608778]
[1672629114114,3.76317576,1198.1,1198.0,9.44608778]
[1672629114336,3.75967245,1198.1,1198.0,9.44608778]
[1672629114520,3.75967245,1198.1,1198.0,11.54408778]
[1672629116234,3.75967245,1198.1,1198.0,12.66993551]
[1672629122441,3.13125076,1198.1,1198.0,25.04473837]
[1672629122861,3.13125076,1198.1,1198.0,33.39197837]
[1672629123106,3.13125076,1198.1,1198.0,41.73921837]
[1672629123316,5.63612576,1198.1,1198.0,33.39197837]
[1672629123592,5.63962907,1198.1,1198.0,33.39197837]
[1672629124178,5.63871158,1198.1,1198.0,33.39197837]
[1672629125407,5.63871158,1198.1,1198.0,25.04473837]
[1672629125595,5.63871158,1198.1,1198.0,21.24717551]
[1672629126703,5.63871158,1198.1,1198.0,12.89993551]
[1672629127702,5.63871158,1198.1,1198.0,21.72625824]
[1672629128640,5.63871158,1198.1,1198.0,25.5238211]
[1672629128852,5.63871158,1198.1,1198.0,33.8710611]
[1672629129307,5.63871158,1198.1,1198.0,30.09262444]
[1672629132653,3.82167245,1198.2,1198.1,3.0]
[1672629132856,3.75967245,1198.2,1198.1,12.95707452]
[1672629133073,3.82567245,1198.3,1198.1,13.02307452]
[1672629133277,3.75967245,1198.3,1198.2,3.0]
[1672629133511,8.75967245,1198.3,1198.2,3.0]
[1672629133719,8.76367245,1198.3,1198.2,3.0]
[1672629134772,5.004,1198.3,1198.2,3.0]
[1672629135407,8.75734058,1198.3,1198.2,3.0]
[1672629137093,5.004,1198.3,1198.2,3.0]
[1672629138243,0.004,1198.3,1198.2,3.0]
[1672629138415,4.57431022,1198.4,1198.2,3.0]
[1672629138627,6.45087038,1198.4,1198.2,3.0]
[1672629138841,6.45487038,1198.4,1198.2,3.0]
[1672629139288,5.0,1198.3,1198.2,3.0]
[1672629139488,5.004,1198.3,1198.2,3.0]
[1672629140468,9.388992,1198.3,1198.2,3.0]
[1672629140623,5.004,1198.3,1198.2,3.0]
[1672629141205,9.388992,1198.3,1198.2,3.0]
[1672629142847,5.004,1198.3,1198.2,3.0]
[1672629143838,9.388992,1198.3,1198.2,3.0]
[1672629145201,4.388992,1198.3,1198.2,3.0]
[1672629145368,4.384992,1198.3,1198.2,3.0]
[1672629146229,9.384992,1198.3,1198.2,3.0]
[1672629146459,9.388992,1198.3,1198.2,3.0]
[1672629150112,9.388992,1198.3,1198.2,3.25238382]
[1672629152209,4.388992,1198.3,1198.2,3.25238382]
[1672629152418,4.384992,1198.3,1198.2,3.25238382]
[1672629153260,9.384992,1198.3,1198.2,3.25238382]
[1672629153524,9.388992,1198.3,1198.2,3.25238382]
[1672629154201,10.17799139,1198.3,1198.2,3.25238382]
[1672629154463,11.84707757,1198.3,1198.2,3.25238382]
[1672629155463,6.67308618,1198.3,1198.2,3.25238382]
[1672629155678,11.84707757,1198.3,1198.2,3.25238382]
[1672629156643,11.84707757,1198.3,1198.2,3.24950104]
[1672629157895,11.84907757,1198.3,1198.2,3.24950104]
[1672629158147,11.84707757,1198.3,1198.2,3.24950104]
[1672629160556,10.17799139,1198.3,1198.2,3.24950104]
[1672629165109,5.17799139,1198.3,1198.2,3.24950104]
[1672629165967,10.17799139,1198.3,1198.2,3.24950104]
[1672629170540,9.38855447,1198.3,1198.2,3.24950104]
[1672629174870,5.004,1198.3,1198.2,3.24950104]
[1672629175083,10.17799139,1198.3,1198.2,3.24950104]
[1672629177010,5.004,1198.3,1198.2,3.24950104]
[1672629177168,9.38892564,1198.3,1198.2,3.24950104]
[1672629177537,5.17799139,1198.3,1198.2,3.24950104]
[1672629177895,5.17799139,1198.3,1198.2,3.24662953]
[1672629178543,10.17799139,1198.3,1198.2,3.24662953]
[1672629184548,5.17799139,1198.3,1198.2,3.24662953]
[1672629185715,10.17799139,1198.3,1198.2,3.24662953]
[1672629186937,5.004,1198.3,1198.2,3.24662953]
[1672629187375,10.17799139,1198.3,1198.2,3.24662953]
[1672629189359,11.8238988,1198.3,1198.2,3.24662953]
[1672629195091,11.8238988,1198.3,1198.2,4.3913282]
[1672629196246,6.8238988,1198.3,1198.2,4.3913282]
[1672629197007,11.8238988,1198.3,1198.2,1.14469867]
[1672629199803,12.86899013,1198.3,1198.2,1.14469867]
[1672629201159,12.86899013,1198.3,1198.2,1.14199995]
[1672629203992,12.86757305,1198.3,1198.2,1.14199995]
[1672629206511,7.86757305,1198.3,1198.2,1.14199995]
[1672629207517,12.86757305,1198.3,1198.2,1.14199995]
[1672629207898,6.64849033,1198.3,1198.2,1.14199995]
[1672629208526,12.86757305,1198.3,1198.2,1.14199995]
[1672629209811,6.64849033,1198.3,1198.2,1.14199995]
[1672629210775,12.86757305,1198.3,1198.2,1.14199995]
[1672629211612,13.49457305,1198.3,1198.2,1.14199995]
[1672629214036,12.86757305,1198.3,1198.2,1.14199995]
[1672629218824,7.86757305,1198.3,1198.2,1.14199995]
[1672629219727,12.86757305,1198.3,1198.2,1.14199995]
[1672629223630,12.86757305,1198.3,1198.2,1.09199995]
[1672629230938,7.86757305,1198.3,1198.2,1.09199995]
[1672629231891,12.86757305,1198.3,1198.2,1.09199995]
[1672629237841,7.86757305,1198.3,1198.2,1.09199995]
[1672629239032,12.86757305,1198.3,1198.2,1.09199995]
[1672629244895,7.86757305,1198.3,1198.2,1.09199995]
[1672629245994,12.86757305,1198.3,1198.2,1.09199995]
[1672629247724,12.86757305,1198.3,1198.2,1.08842032]
[1672629254234,7.86757305,1198.3,1198.2,1.08842032]
[1672629255293,12.86757305,1198.3,1198.2,1.08842032]
[1672629255714,12.86383136,1198.3,1198.2,1.08842032]
[1672629255959,12.86583136,1198.3,1198.2,1.08842032]
[1672629257065,6.64674864,1198.3,1198.2,1.08842032]
[1672629258808,12.86583136,1198.3,1198.2,1.08842032]
[1672629261391,7.86583136,1198.3,1198.2,1.08842032]
[1672629262483,12.86583136,1198.3,1198.2,1.08842032]
[1672629268416,7.86583136,1198.3,1198.2,1.08842032]
[1672629269278,12.86583136,1198.3,1198.2,1.08842032]
[1672629275368,7.86583136,1198.3,1198.2,1.08842032]
[1672629276307,12.86583136,1198.3,1198.2,1.08842032]
[1672629279415,12.86583136,1198.3,1198.2,1.08467338]
[1672629282542,7.86583136,1198.3,1198.2,1.08467338]
[1672629283419,12.86583136,1198.3,1198.2,1.08467338]
[1672629289422,7.86583136,1198.3,1198.2,1.08467338]
[1672629290521,12.86583136,1198.3,1198.2,1.08467338]
[1672629296342,7.86583136,1198.3,1198.2,1.08467338]
[1672629297373,12.8619761,1198.3,1198.2,1.08467338]
[1672629303572,7.8619761,1198.3,1198.2,1.08467338]
[1672629304546,12.8619761,1198.3,1198.2,1.08467338]
[1672629307979,6.64289338,1198.3,1198.2,1.08467338]
[1672629308304,11.22308272,1198.3,1198.2,1.08467338]
[1672629309371,5.004,1198.3,1198.2,1.08467338]
[1672629309576,11.22308272,1198.3,1198.2,1.08467338]
[1672629310446,10.18578033,1198.3,1198.2,1.08467338]
[1672629311084,5.004,1198.3,1198.2,1.08467338]
[1672629311513,10.18528515,1198.3,1198.2,1.52668813]
[1672629311679,14.57108949,1198.3,1198.2,7.53005127]
[1672629311890,9.38979407,1198.3,1198.2,10.59605127]
[1672629312078,10.18528515,1198.3,1198.2,10.59605127]
[1672629312294,9.38985205,1198.3,1198.2,10.59605127]
[1672629312504,9.38985205,1198.3,1198.2,6.94307195]